fUST/lending_fUST_20250522
["ID","MTS","AMOUNT","RATE_DAILY","PERIOD"]
[361969982,1747914641174,-430.0,0.00021917,2]
[361969984,1747914641184,-430.0,0.00021917,2]
[361969986,1747914641193,-430.0,0.00021917,2]
[361969988,1747914641203,-430.0,0.00021917,2]
[361969990,1747914641212,-530.0,0.00021917,2]
[361969992,1747914641221,-430.0,0.00021917,2]
[361969994,1747914641231,-430.0,0.00021917,2]
[361969995,1747914641240,-550.95604686,0.00021917,2]
[361969997,1747914641250,-430.0,0.00021917,2]
[361969999,1747914641259,-430.0,0.00021917,2]
[361970001,1747914641268,-965.1,0.00021917,2]
[361970003,1747914641278,-430.0,0.00021917,2]
[361970006,1747914641288,-401.46806045,0.00021917,2]
[361970008,1747914641297,-891.98,0.00021917,2]
[361970010,1747914641307,-430.0,0.00021917,2]
[361970012,1747914641316,-430.0,0.00021917,2]
[361970014,1747914641325,-430.0,0.00021917,2]
[361970016,1747914641336,-430.0,0.00021917,2]
[361970018,1747914641350,-430.0,0.00021917,2]
[361970020,1747914641360,-452.41462374,0.00021917,2]
[361970022,1747914641370,-220.0,0.00021917,2]
[361970024,1747914641379,-430.0,0.00021917,2]
[361970026,1747914641389,-942.18,0.00021917,2]
[361970028,1747914641399,-430.0,0.00021917,2]
[361970030,1747914641408,-430.0,0.00021917,2]
[361970032,1747914641418,-430.0,0.00021917,2]
[361970034,1747914641427,-430.0,0.00021917,2]
[361970036,1747914641438,-430.0,0.00021917,2]
[361970038,1747914641447,-673.85,0.00021917,2]
[361970040,1747914641457,-430.0,0.00021917,2]
[361970042,1747914641466,-430.0,0.00021917,2]
[361970044,1747914641476,-413.22463869,0.00021917,2]
[361970046,1747914641486,-430.0,0.00021917,2]
[361970048,1747914641495,-554.1,0.00021917,2]
[361970050,1747914641504,-250.68733923,0.00021917,2]
[361970051,1747914641513,-430.0,0.00021917,2]
[361970053,1747914641524,-2029.53,0.00021917,2]
[361970055,1747914641534,-430.0,0.00021917,2]
[361970057,1747914641543,-292.34601701,0.00021917,2]
[361970059,1747914641552,-656.5,0.00021917,2]
[361970061,1747914641562,-430.0,0.00021917,2]
[361970063,1747914641572,-400.0,0.00021917,2]
[361970066,1747914641583,-430.0,0.00021917,2]
[361970067,1747914641594,-430.0,0.00021917,2]
[361970069,1747914641603,-430.0,0.00021917,2]
[361970071,1747914641612,-400.0,0.00021917,2]
[361970073,1747914641621,-430.0,0.00021917,2]
[361970075,1747914641631,-430.0,0.00021917,2]
[361970077,1747914641641,-5985.67,0.00021917,2]
[361970079,1747914641650,-430.0,0.00021917,2]
[361970081,1747914641659,-430.0,0.00021917,2]
[361970083,1747914641668,-430.0,0.00021917,2]
[361970085,1747914641678,-430.0,0.00021917,2]
[361970087,1747914641687,-430.0,0.00021917,2]
[361970089,1747914641697,-430.0,0.00021917,2]
[361970091,1747914641707,-430.0,0.00021917,2]
[361970093,1747914641716,-430.0,0.00021917,2]
[361970095,1747914641726,-2121.57,0.00021917,2]
[361970097,1747914641736,-430.0,0.00021917,2]
[361970099,1747914641744,-430.0,0.00021917,2]
[361970101,1747914641754,-400.0,0.00021917,2]
[361970103,1747914641764,-430.0,0.00021917,2]
[361970105,1747914641773,-430.0,0.00021917,2]
[361970107,1747914641782,-430.0,0.00021917,2]
[361970109,1747914641792,-430.0,0.00021917,2]
[361970111,1747914641801,-845.45,0.00021917,2]
[361970113,1747914641810,-445.21,0.00021917,2]
[361970116,1747914641821,-430.0,0.00021917,2]
[361970118,1747914641830,-933.08,0.00021917,2]
[361970120,1747914641840,-430.0,0.00021917,2]
[361970122,1747914641850,-430.0,0.00021917,2]
[361970124,1747914641860,-565.03,0.00021917,2]
[361970126,1747914641869,-430.0,0.00021917,2]
[361970128,1747914641879,-430.0,0.00021917,2]
[361970130,1747914641889,-648.37,0.00021917,2]
[361970132,1747914641898,-430.0,0.00021917,2]
[361970134,1747914641907,-430.0,0.00021917,2]
[361970136,1747914641917,-430.0,0.00021917,2]
[361970138,1747914641926,-430.0,0.00021917,2]
[361970140,1747914641936,-917.64,0.00021917,2]
[361970142,1747914641945,-430.0,0.00021917,2]
[361970144,1747914641956,-430.0,0.00021917,2]
[361970146,1747914641965,-430.0,0.00021917,2]
[361970148,1747914641975,-500.0,0.00021917,2]
[361970150,1747914641987,-2103.07,0.00021917,2]
[361970152,1747914641996,-290.0,0.00021917,2]
[361970154,1747914642006,-400.0,0.00021917,2]
[361970156,1747914642016,-430.0,0.00021917,2]
[361970158,1747914642025,-430.0,0.00021917,2]
[361970160,1747914642035,-430.0,0.00021917,2]
[361970162,1747914642044,-430.0,0.00021917,2]
[361970164,1747914642054,-430.0,0.00021917,2]
[361970166,1747914642063,-430.0,0.00021917,2]
[361970168,1747914642073,-430.0,0.00021917,2]
[361970170,1747914642083,-232.14609233,0.00021917,2]
[361970172,1747914642092,-4063.14,0.00021917,2]
[361970174,1747914642102,-430.0,0.00021917,2]
[361970176,1747914642116,-430.0,0.00021917,2]
[361970178,1747914642126,-537.73,0.00021917,2]
[361970180,1747914642135,-1978.56,0.00021917,2]
[361970182,1747914642144,-430.0,0.00021917,2]
[361970184,1747914642154,-430.0,0.00021917,2]
[361970186,1747914642163,-430.0,0.00021917,2]
[361970188,1747914642173,-430.0,0.00021917,2]
[361970190,1747914642182,-430.0,0.00021917,2]
[361970192,1747914642192,-430.0,0.00021917,2]
[361970194,1747914642203,-430.0,0.00021917,2]
[361970196,1747914642212,-430.0,0.00021917,2]
[361970198,1747914642222,-350.0,0.00021917,2]
[361970200,1747914642233,-400.0,0.00021917,2]
[361970203,1747914642243,-290.0,0.00021917,2]
[361970205,1747914642253,-430.0,0.00021917,2]
[361970207,1747914642262,-400.0,0.00021917,2]
[361970208,1747914642271,-430.0,0.00021917,2]
[361970210,1747914642281,-400.0,0.00021917,2]
[361970212,1747914642290,-430.0,0.00021917,2]
[361970215,1747914642302,-430.0,0.00021917,2]
[361970217,1747914642311,-430.0,0.00021917,2]
[361970219,1747914642320,-717.96,0.00021917,2]
[361970221,1747914642330,-430.0,0.00021917,2]
[361970223,1747914642344,-528.93,0.00021917,2]
[361970225,1747914642354,-430.0,0.00021917,2]
[361970227,1747914642364,-430.0,0.00021917,2]
[361970229,1747914642373,-430.0,0.00021917,2]
[361970231,1747914642383,-780.62,0.00021917,2]
[361970233,1747914642393,-430.0,0.00021917,2]
[361970235,1747914642403,-430.0,0.00021917,2]
[361970237,1747914642412,-430.0,0.00021917,2]
[361970239,1747914642422,-328.77149452,0.00021917,2]
[361970241,1747914642433,-430.0,0.00021917,2]
[361970243,1747914642443,-430.0,0.00021917,2]
[361970245,1747914642453,-430.0,0.00021917,2]
[361970247,1747914642463,-430.0,0.00021917,2]
[361970249,1747914642472,-430.0,0.00021917,2]
[361970251,1747914642482,-430.0,0.00021917,2]
[361970253,1747914642491,-350.0,0.00021917,2]
[361970255,1747914642501,-1172.0,0.00021917,2]
[361970257,1747914642511,-430.0,0.00021917,2]
[361970259,1747914642521,-430.0,0.00021917,2]
[361970273,1747914642533,-430.0,0.00021917,2]
[361970276,1747914642647,-861.34,0.00021917,2]
[361970278,1747914642657,-430.0,0.00021917,2]
[361970280,1747914642666,-430.0,0.00021917,2]
[361970281,1747914642675,-430.0,0.00021917,2]
[361970284,1747914642686,-430.0,0.00021917,2]
[361970286,1747914642696,-383.8502655,0.00021917,2]
[361970288,1747914642705,-430.0,0.00021917,2]
[361970291,1747914642715,-430.0,0.00021917,2]
[361970294,1747914642726,-1616.02,0.00021917,2]
[361970296,1747914642736,-653.22,0.00021917,2]
[361970298,1747914642746,-430.0,0.00021917,2]
[361970300,1747914642756,-430.0,0.00021917,2]
[361970302,1747914642765,-430.0,0.00021917,2]
[361970304,1747914642774,-400.0,0.00021917,2]
[361970306,1747914642784,-430.0,0.00021917,2]
[361970308,1747914642793,-2731.06,0.00021917,2]
[361970310,1747914642803,-430.0,0.00021917,2]
[361970312,1747914642813,-370.99038789,0.00021917,2]
[361970315,1747914642822,-430.0,0.00021917,2]
[361970318,1747914642832,-430.0,0.00021917,2]
[361970321,1747914642842,-1894.44,0.00021917,2]
[361970324,1747914642852,-430.0,0.00021917,2]
[361970327,1747914642862,-430.0,0.00021917,2]
[361970330,1747914642872,-430.0,0.00021917,2]
[361970333,1747914642882,-430.0,0.00021917,2]
[361970336,1747914642892,-430.0,0.00021917,2]
[361970338,1747914642902,-816.9,0.00021917,2]
[361970340,1747914642912,-430.0,0.00021917,2]
[361970342,1747914642921,-400.0,0.00021917,2]
[361970344,1747914642930,-430.0,0.00021917,2]
[361970346,1747914642941,-430.0,0.00021917,2]
[361970348,1747914642950,-292.15703517,0.00021917,2]
[361970350,1747914642960,-430.0,0.00021917,2]
[361970353,1747914642970,-575.65052376,0.00021917,2]
[361970355,1747914642980,-430.0,0.00021917,2]
[361970357,1747914642989,-430.0,0.00021917,2]
[361970359,1747914642999,-1293.84,0.00021917,2]
[361970361,1747914643009,-430.0,0.00021917,2]
[361970364,1747914643019,-430.0,0.00021917,2]
[361970366,1747914643029,-430.0,0.00021917,2]
[361970368,1747914643039,-430.0,0.00021917,2]
[361970371,1747914643048,-430.0,0.00021917,2]
[361970374,1747914643057,-765.98,0.00021917,2]
[361970376,1747914643067,-430.0,0.00021917,2]
[361970378,1747914643077,-430.0,0.00021917,2]
[361970380,1747914643086,-430.0,0.00021917,2]
[361970382,1747914643097,-430.0,0.00021917,2]
[361970384,1747914643107,-430.0,0.00021917,2]
[361970385,1747914643118,-196.0,0.00021917,2]
[361970386,1747914643127,-689.74,0.00021917,2]
[361970387,1747914643137,-1599.21,0.00021917,2]
[361970388,1747914643146,-430.0,0.00021917,2]
[361970389,1747914643156,-430.0,0.00021917,2]
[361970390,1747914643165,-430.0,0.00021917,2]
[361970391,1747914643174,-430.0,0.00021917,2]
[361970392,1747914643183,-400.0,0.00021917,2]
[361970393,1747914643193,-652.77,0.00021917,2]
[361970394,1747914643202,-1080.79,0.00021917,2]
[361970395,1747914643211,-430.0,0.00021917,2]
[361970396,1747914643221,-553.45,0.00021917,2]
[361970397,1747914643231,-430.0,0.00021917,2]
[361970398,1747914643241,-450.19,0.00021917,2]
[361970399,1747914643250,-430.0,0.00021917,2]
[361970400,1747914643259,-430.0,0.00021917,2]
[361970401,1747914643269,-430.0,0.00021917,2]
[361970402,1747914643278,-706.4,0.00021917,2]
[361970403,1747914643288,-835.86,0.00021917,2]
[361970404,1747914643297,-430.0,0.00021917,2]
[361970405,1747914643307,-430.0,0.00021917,2]
[361970406,1747914643316,-340.0,0.00021917,2]
[361970407,1747914643325,-430.0,0.00021917,2]
[361970408,1747914643335,-430.0,0.00021917,2]
[361970409,1747914643347,-430.0,0.00021917,2]
[361970410,1747914643356,-427.50915335,0.00021917,2]
[361970411,1747914643365,-430.0,0.00021917,2]
[361970412,1747914643375,-430.0,0.00021917,2]
[361970413,1747914643386,-1879.76,0.00021917,2]
[361970414,1747914643395,-430.0,0.00021917,2]
[361970415,1747914643405,-430.0,0.00021917,2]
[361970416,1747914643414,-521.95540922,0.00021917,2]
[361970417,1747914643425,-510.2985074,0.00021917,2]
[361970418,1747914643434,-430.0,0.00021917,2]
[361970419,1747914643443,-430.0,0.00021917,2]
[361970420,1747914643452,-430.0,0.00021917,2]
[361970421,1747914643461,-400.0,0.00021917,2]
[361970422,1747914643470,-430.0,0.00021917,2]
[361970423,1747914643479,-430.0,0.00021917,2]
[361970424,1747914643489,-430.0,0.00021917,2]
[361970425,1747914643498,-430.0,0.00021917,2]
[361970426,1747914643508,-430.0,0.00021917,2]
[361970427,1747914643517,-430.0,0.00021917,2]
[361970428,1747914643527,-5205.77,0.00021917,2]
[361970430,1747914643536,-430.0,0.00021917,2]
[361970431,1747914643545,-767.74,0.00021917,2]
[361970432,1747914643555,-1986.67,0.00021917,2]
[361970433,1747914643564,-400.0,0.00021917,2]
[361970434,1747914643573,-430.0,0.00021917,2]
[361970436,1747914643583,-430.0,0.00021917,2]
[361970438,1747914643592,-500.0,0.00021917,2]
[361970439,1747914643601,-500.0,0.00021917,2]
[361970441,1747914643610,-500.0,0.00021917,2]
[361970442,1747914643619,-500.0,0.00021918,2]
[361970443,1747914643628,-500.0,0.00021918,2]
[361970444,1747914643638,-500.0,0.00021918,2]
[361970445,1747914643647,-500.0,0.00021918,2]
[361970446,1747914643657,-500.0,0.00021918,2]
[361970447,1747914643666,-500.0,0.00021918,2]
[361970448,1747914643675,-500.0,0.00021918,2]
[361970449,1747914643685,-568.46628397,0.00021918,2]
[361970450,1747914643694,-500.0,0.00021918,2]
[361970451,1747914643703,-500.0,0.00021918,2]
[361970452,1747914643712,-500.0,0.00021918,2]
[361970453,1747914643722,-500.0,0.00021918,2]
[361970454,1747914643732,-500.0,0.00021918,2]
[361970455,1747914643743,-450.0,0.00021918,2]
[361970456,1747914643752,-500.0,0.00021945,2]
[361970457,1747914643762,-501.49922648,0.00021945,2]
[361970458,1747914643771,-500.0,0.00021973,2]
[361970459,1747914643780,-500.0,0.00021973,2]
[361970460,1747914643790,-500.0,0.00021973,2]
[361970461,1747914643799,-500.0,0.00021973,2]
[361970463,1747914643808,-500.0,0.00021973,2]
[361970465,1747914643817,-500.0,0.00021973,2]
[361970466,1747914643826,-500.0,0.00021973,2]
[361970468,1747914643835,-500.0,0.00021973,2]
[361970470,1747914643845,-500.0,0.00021973,2]
[361970473,1747914643855,-500.0,0.00021973,2]
[361970475,1747914643864,-500.0,0.00021973,2]
[361970477,1747914643873,-500.0,0.00021973,2]
[361970479,1747914643883,-500.0,0.00021973,2]
[361970480,1747914643892,-511.69255546,0.00021973,2]
[361970483,1747914643902,-1930.04097123,0.00022003,6]
[361970485,1747914643911,-593.86165625,0.00022013,2]
[361970487,1747914643920,-1064.08,0.000221,6]
[361970489,1747914643930,-500.0,0.00022111,2]
[361970491,1747914643939,-500.0,0.00022111,2]
[361970493,1747914643949,-500.0,0.00022165,2]
[361970495,1747914643958,-400.0,0.00022191,2]
[361970497,1747914643967,-430.0,0.00022191,2]
[361970499,1747914643976,-448.78830593,0.00022191,2]
[361970501,1747914643986,-457.60881042,0.00022191,2]
[361970503,1747914643996,-357.03609032,0.00022191,2]
[361970505,1747914644005,-457.1625648,0.00022191,2]
[361970506,1747914644014,-430.0,0.00022191,2]
[361970508,1747914644024,-430.0,0.00022191,2]
[361970511,1747914644034,-430.0,0.00022191,2]
[361970513,1747914644044,-416.45315895,0.00022191,2]
[361970515,1747914644053,-430.0,0.00022191,2]
[361970517,1747914644063,-430.0,0.00022191,2]
[361970519,1747914644072,-430.0,0.00022191,2]
[361970521,1747914644081,-430.0,0.00022191,2]
[361970523,1747914644090,-430.0,0.00022191,2]
[361970525,1747914644099,-340.0,0.00022191,2]
[361970527,1747914644108,-430.0,0.00022191,2]
[361970529,1747914644117,-430.0,0.00022191,2]
[361970531,1747914644127,-430.0,0.00022191,2]
[361970533,1747914644136,-350.0,0.00022191,2]
[361970535,1747914644145,-430.0,0.00022191,2]
[361970537,1747914644155,-430.0,0.00022191,2]
[361970539,1747914644164,-430.0,0.00022191,2]
[361970541,1747914644174,-420.0,0.00022191,2]
[361970543,1747914644183,-350.0,0.00022191,2]
[361970545,1747914644192,-430.0,0.00022191,2]
[361970547,1747914644201,-430.0,0.00022191,2]
[361970548,1747914644211,-430.0,0.00022191,2]
[361970551,1747914644221,-370.52819072,0.00022191,2]
[361970553,1747914644231,-430.0,0.00022191,2]
[361970554,1747914644241,-430.0,0.00022191,2]
[361970557,1747914644250,-344.47158068,0.00022191,2]
[361970558,1747914644259,-420.0,0.00022191,2]
[361970560,1747914644269,-531.31061919,0.00022191,2]
[361970562,1747914644278,-430.0,0.00022191,2]
[361970564,1747914644288,-450.0,0.00022191,2]
[361970566,1747914644297,-430.0,0.00022191,2]
[361970567,1747914644307,-430.0,0.00022191,2]
[361970568,1747914644316,-430.0,0.00022191,2]
[361970569,1747914644326,-430.0,0.00022191,2]
[361970570,1747914644338,-430.0,0.00022191,2]
[361970571,1747914644353,-430.0,0.00022191,2]
[361970572,1747914644364,-243.20797149,0.00022191,2]
[361970573,1747914644374,-430.0,0.00022191,2]
[361970574,1747914644384,-430.0,0.00022191,2]
[361970575,1747914644393,-420.0,0.00022191,2]
[361970576,1747914644403,-430.0,0.00022191,2]
[361970577,1747914644413,-430.0,0.00022191,2]
[361970578,1747914644423,-493.14,0.00022191,2]
[361970579,1747914644534,-430.0,0.00022191,2]
[361970580,1747914644544,-430.0,0.00022191,2]
[361970581,1747914644554,-430.0,0.00022191,2]
[361970582,1747914644563,-430.0,0.00022191,2]
[361970583,1747914644572,-430.0,0.00022191,2]
[361970584,1747914644582,-942.39,0.00022191,2]
[361970585,1747914644592,-430.0,0.00022191,2]
[361970586,1747914644601,-430.0,0.00022191,2]
[361970587,1747914644611,-468.05,0.00022191,2]
[361970588,1747914644620,-430.0,0.00022191,2]
[361970589,1747914644630,-430.0,0.00022191,2]
[361970590,1747914644639,-430.0,0.00022191,2]
[361970591,1747914644649,-430.0,0.00022191,2]
[361970592,1747914644658,-430.0,0.00022191,2]
[361970593,1747914644668,-430.0,0.00022191,2]
[361970594,1747914644677,-1129.9,0.00022191,2]
[361970595,1747914644687,-253.1954158,0.00022191,2]
[361970596,1747914644697,-430.0,0.00022191,2]
[361970597,1747914644707,-430.0,0.00022191,2]
[361970598,1747914644716,-290.0,0.00022191,2]
[361970599,1747914644727,-430.0,0.00022191,2]
[361970600,1747914644738,-430.0,0.00022191,2]
[361970601,1747914644748,-430.0,0.00022191,2]
[361970602,1747914644758,-356.47053305,0.00022191,2]
[361970603,1747914644768,-430.0,0.00022191,2]
[361970604,1747914644778,-430.0,0.00022191,2]
[361970605,1747914644787,-430.0,0.00022191,2]
[361970606,1747914644797,-544.80779855,0.00022191,2]
[361970607,1747914644807,-430.0,0.00022191,2]
[361970608,1747914644817,-821.48,0.00022191,2]
[361970609,1747914644827,-430.0,0.00022191,2]
[361970610,1747914644837,-430.0,0.00022191,2]
[361970611,1747914644847,-444.14,0.00022191,2]
[361970612,1747914644860,-430.0,0.00022191,2]
[361970613,1747914644870,-430.0,0.00022191,2]
[361970614,1747914644880,-430.0,0.00022191,2]
[361970615,1747914644890,-430.0,0.00022191,2]
[361970616,1747914644900,-815.67,0.00022191,2]
[361970617,1747914644910,-430.0,0.00022191,2]
[361970618,1747914644920,-675.04,0.00022191,2]
[361970619,1747914644930,-430.0,0.00022191,2]
[361970620,1747914644939,-430.0,0.00022191,2]
[361970621,1747914644949,-1016.0,0.00022191,2]
[361970622,1747914644958,-430.0,0.00022191,2]
[361970623,1747914644968,-430.0,0.00022191,2]
[361970624,1747914644979,-430.0,0.00022191,2]
[361970625,1747914644989,-430.0,0.00022191,2]
[361970626,1747914644998,-430.0,0.00022191,2]
[361970627,1747914645008,-370.0,0.00022191,2]
[361970628,1747914645018,-430.0,0.00022191,2]
[361970629,1747914645028,-430.0,0.00022191,2]
[361970630,1747914645038,-965.1,0.00022191,2]
[361970631,1747914645047,-891.98,0.00022191,2]
[361970632,1747914645057,-430.0,0.00022191,2]
[361970633,1747914645066,-322.95901695,0.00022191,2]
[361970634,1747914645076,-430.0,0.00022191,2]
[361970635,1747914645085,-430.0,0.00022191,2]
[361970636,1747914645095,-430.0,0.00022191,2]
[361970637,1747914645105,-430.0,0.00022191,2]
[361970638,1747914645115,-942.18,0.00022191,2]
[361970639,1747914645125,-430.0,0.00022191,2]
[361970640,1747914645135,-673.85,0.00022191,2]
[361970641,1747914645145,-430.0,0.00022191,2]
[361970642,1747914645155,-554.1,0.00022191,2]
[361970643,1747914645164,-430.0,0.00022191,2]
[361970644,1747914645174,-2029.53,0.00022191,2]
[361970645,1747914645183,-430.0,0.00022191,2]
[361970646,1747914645192,-656.5,0.00022191,2]
[361970647,1747914645202,-430.0,0.00022191,2]
[361970648,1747914645211,-430.0,0.00022191,2]
[361970649,1747914645221,-430.0,0.00022191,2]
[361970650,1747914645231,-5985.67,0.00022191,2]
[361970651,1747914645241,-430.0,0.00022191,2]
[361970652,1747914645250,-430.0,0.00022191,2]
[361970653,1747914645260,-430.0,0.00022191,2]
[361970654,1747914645269,-430.0,0.00022191,2]
[361970655,1747914645279,-430.0,0.00022191,2]
[361970656,1747914645289,-430.0,0.00022191,2]
[361970657,1747914645301,-2121.57,0.00022191,2]
[361970658,1747914645312,-430.0,0.00022191,2]
[361970659,1747914645322,-430.0,0.00022191,2]
[361970660,1747914645333,-845.45,0.00022191,2]
[361970661,1747914645344,-445.21,0.00022191,2]
[361970662,1747914645354,-430.0,0.00022191,2]
[361970663,1747914645363,-933.08,0.00022191,2]
[361970664,1747914645374,-430.0,0.00022191,2]
[361970665,1747914645383,-565.03,0.00022191,2]
[361970666,1747914645393,-430.0,0.00022191,2]
[361970667,1747914645404,-430.0,0.00022191,2]
[361970668,1747914645414,-648.37,0.00022191,2]
[361970669,1747914645424,-430.0,0.00022191,2]
[361970670,1747914645434,-389.83367174,0.00022191,2]
[361970671,1747914645444,-430.0,0.00022191,2]
[361970672,1747914645454,-917.64,0.00022191,2]
[361970673,1747914645463,-430.0,0.00022191,2]
[361970674,1747914645473,-430.0,0.00022191,2]
[361970675,1747914645484,-2103.07,0.00022191,2]
[361970676,1747914645493,-430.0,0.00022191,2]
[361970677,1747914645503,-400.0,0.00022191,2]
[361970678,1747914645513,-430.0,0.00022191,2]
[361970679,1747914645523,-430.0,0.00022191,2]
[361970680,1747914645533,-4063.14,0.00022191,2]
[361970681,1747914645549,-430.0,0.00022191,2]
[361970682,1747914645559,-537.73,0.00022191,2]
[361970683,1747914645569,-1978.56,0.00022191,2]
[361970684,1747914645578,-430.0,0.00022191,2]
[361970685,1747914645588,-430.0,0.00022191,2]
[361970686,1747914645597,-430.0,0.00022191,2]
[361970687,1747914645607,-430.0,0.00022191,2]
[361970688,1747914645616,-450.0,0.00022191,2]
[361970689,1747914645625,-430.0,0.00022191,2]
[361970690,1747914645634,-430.0,0.00022191,2]
[361970691,1747914645645,-350.0,0.00022191,2]
[361970692,1747914645654,-350.0,0.00022191,2]
[361970693,1747914645663,-430.0,0.00022191,2]
[361970694,1747914645672,-430.0,0.00022191,2]
[361970696,1747914645682,-717.96,0.00022191,2]
[361970697,1747914645691,-400.0,0.00022191,2]
[361970698,1747914645700,-528.93,0.00022191,2]
[361970699,1747914645710,-430.0,0.00022191,2]
[361970700,1747914645719,-430.0,0.00022191,2]
[361970701,1747914645729,-780.62,0.00022191,2]
[361970702,1747914645739,-350.0,0.00022191,2]
[361970703,1747914645748,-430.0,0.00022191,2]
[361970704,1747914645757,-430.0,0.00022191,2]
[361970705,1747914645767,-400.0,0.00022191,2]
[361970706,1747914645776,-1172.0,0.00022191,2]
[361970708,1747914645786,-430.0,0.00022191,2]
[361970709,1747914645796,-430.0,0.00022191,2]
[361970710,1747914645807,-250.0,0.00022191,2]
[361970711,1747914645816,-861.34,0.00022191,2]
[361970712,1747914645826,-430.0,0.00022191,2]
[361970713,1747914645835,-430.0,0.00022191,2]
[361970715,1747914645844,-430.0,0.00022191,2]
[361970716,1747914645854,-1616.02,0.00022191,2]
[361970717,1747914645863,-653.22,0.00022191,2]
[361970718,1747914645873,-430.0,0.00022191,2]
[361970719,1747914645883,-430.0,0.00022191,2]
[361970720,1747914645892,-430.0,0.00022191,2]
[361970721,1747914645902,-2731.06,0.00022191,2]
[361970722,1747914645912,-430.0,0.00022191,2]
[361970723,1747914645921,-1894.44,0.00022191,2]
[361970724,1747914645931,-430.0,0.00022191,2]
[361970725,1747914645940,-430.0,0.00022191,2]
[361970726,1747914645949,-430.0,0.00022191,2]
[361970727,1747914645959,-430.0,0.00022191,2]
[361970728,1747914645968,-816.9,0.00022191,2]
[361970729,1747914645977,-430.0,0.00022191,2]
[361970730,1747914645988,-430.0,0.00022191,2]
[361970731,1747914645997,-430.0,0.00022191,2]
[361970732,1747914646006,-430.0,0.00022191,2]
[361970733,1747914646015,-1293.84,0.00022191,2]
[361970734,1747914646024,-400.0,0.00022191,2]
[361970735,1747914646033,-430.0,0.00022191,2]
[361970736,1747914646043,-400.0,0.00022191,2]
[361970737,1747914646052,-765.98,0.00022191,2]
[361970738,1747914646061,-300.0,0.00022191,2]
[361970739,1747914646070,-689.74,0.00022191,2]
[361970740,1747914646079,-1599.21,0.00022191,2]
[361970741,1747914646088,-430.0,0.00022191,2]
[361970742,1747914646098,-652.77,0.00022191,2]
[361970743,1747914646107,-1080.79,0.00022191,2]
[361970744,1747914646116,-430.0,0.00022191,2]
[361970745,1747914646125,-553.45,0.00022191,2]
[361970746,1747914646135,-430.0,0.00022191,2]
[361970747,1747914646145,-450.19,0.00022191,2]
[361970748,1747914646155,-430.0,0.00022191,2]
[361970749,1747914646165,-430.0,0.00022191,2]
[361970750,1747914646174,-430.0,0.00022191,2]
[361970751,1747914646183,-706.4,0.00022191,2]
[361970752,1747914646192,-835.86,0.00022191,2]
[361970753,1747914646308,-430.0,0.00022191,2]
[361970754,1747914646318,-430.0,0.00022191,2]
[361970755,1747914646329,-430.0,0.00022191,2]